bitfinex/quotes_BTCUSD_20240820
["timestamp","ask_amount","ask_price","bid_price","bid_amount"]
[1724171764751,0.04525715,59043.0,59041.0,0.541431]
[1724171764951,0.03713469,59042.0,59041.0,0.541431]
[1724171765304,0.05449068,59042.0,59041.0,0.541431]
[1724171765496,0.63139068,59042.0,59041.0,0.541431]
[1724171765822,0.73139068,59042.0,59041.0,0.541431]
[1724171766373,0.86565187,59042.0,59041.0,0.541431]
[1724171766584,0.73115587,59042.0,59041.0,0.541431]
[1724171768048,0.33825587,59042.0,59041.0,0.541431]
[1724171768399,0.34025587,59042.0,59041.0,0.5423352]
[1724171768611,0.33925587,59042.0,59041.0,0.5423352]
[1724171768805,0.34125587,59042.0,59041.0,0.5423352]
[1724171769008,0.33925587,59042.0,59041.0,0.5423352]
[1724171769556,0.15041474,59042.0,59041.0,0.5423352]
[1724171769685,0.12512237,59042.0,59041.0,0.5423352]
[1724171770031,0.04925587,59042.0,59041.0,0.5423352]
[1724171770235,0.01635598,59042.0,59041.0,0.9476352]
[1724171770485,0.61535598,59042.0,59041.0,0.9476352]
[1724171770668,0.61535598,59042.0,59041.0,1.1348352]
[1724171770867,0.61635598,59042.0,59041.0,1.1348352]
[1724171771084,0.604,59042.0,59041.0,1.1348352]
[1724171771287,0.61334227,59042.0,59041.0,1.1348352]
[1724171771706,0.61634227,59042.0,59041.0,1.1348352]
[1724171771910,0.61334227,59042.0,59041.0,1.1348352]
[1724171772348,0.61434227,59042.0,59041.0,1.1348352]
[1724171772760,0.61334227,59042.0,59041.0,1.1348352]
[1724171773169,0.61434227,59042.0,59041.0,1.1348352]
[1724171779790,0.61434227,59042.0,59041.0,0.9476352]
[1724171779791,0.66496437,59042.0,59041.0,0.9476352]
[1724171779990,0.74804942,59042.0,59041.0,0.9476352]
[1724171780121,0.64680521,59042.0,59041.0,0.9476352]
[1724171780321,0.64580521,59042.0,59041.0,0.9476352]
[1724171780747,0.72181079,59042.0,59041.0,0.9476352]
[1724171780921,0.72181079,59042.0,59041.0,1.1360352]
[1724171780922,0.61234227,59042.0,59041.0,1.1360352]
[1724171782655,0.61334227,59042.0,59041.0,1.1360352]
[1724171783075,0.61434227,59042.0,59041.0,1.1360352]
[1724171788497,0.21434227,59042.0,59041.0,1.1360352]
[1724171789134,0.21434227,59042.0,59041.0,1.2360352]
[1724171791529,0.01434227,59042.0,59041.0,1.2590352]
[1724171791756,0.01434227,59042.0,59041.0,1.2620352]
[1724171791757,0.002,59042.0,59041.0,1.2620352]
[1724171791962,0.002,59042.0,59041.0,1.27265913]
[1724171792165,0.002,59042.0,59041.0,1.43290504]
[1724171792368,0.001,59042.0,59041.0,1.43290504]
[1724171792579,0.000821,59044.0,59041.0,0.83920504]
[1724171792756,0.000821,59044.0,59042.0,0.7104]
[1724171792930,0.000821,59044.0,59043.0,0.4114]
[1724171793199,0.000821,59044.0,59043.0,0.5344]
[1724171793403,0.000821,59044.0,59043.0,0.5114]
[1724171794163,0.000821,59044.0,59043.0,0.4114]
[1724171794622,0.0138805,59044.0,59043.0,0.4114]
[1724171794999,0.0148805,59044.0,59043.0,0.4114]
[1724171795200,0.0138805,59044.0,59043.0,0.4114]
[1724171795407,0.06359356,59044.0,59043.0,0.4114]
[1724171795803,0.06459356,59044.0,59043.0,0.4164]
[1724171796004,0.06559356,59044.0,59043.0,0.4224]
[1724171798345,0.0148805,59044.0,59043.0,0.4224]
[1724171800132,0.0148805,59044.0,59043.0,0.6152]
[1724171801217,0.0148805,59044.0,59043.0,0.4224]
[1724171803899,0.002821,59044.0,59043.0,0.4224]
[1724171804511,0.002821,59044.0,59043.0,0.7099]
[1724171805187,0.002821,59044.0,59043.0,0.72063242]
[1724171805930,0.002821,59044.0,59043.0,0.7099]
[1724171806331,0.002821,59044.0,59043.0,0.5224]
[1724171806724,0.01485389,59044.0,59043.0,0.5224]
[1724171807151,0.01485389,59044.0,59043.0,0.4224]
[1724171808976,0.09805893,59044.0,59043.0,0.4224]
[1724171809174,0.10229312,59044.0,59043.0,0.011]
[1724171809441,0.05157124,59044.0,59043.0,0.011]
[1724171810309,0.12765839,59044.0,59043.0,0.011]
[1724171810642,0.1234242,59044.0,59043.0,0.011]
[1724171812156,0.14878659,59044.0,59043.0,0.011]
[1724171812619,0.12346715,59044.0,59043.0,0.011]
[1724171813212,0.14878659,59044.0,59043.0,0.011]
[1724171813614,0.04733705,59044.0,59043.0,0.011]
[1724171814205,0.17414898,59044.0,59043.0,0.011]
[1724171814418,0.04733705,59044.0,59043.0,0.011]
[1724171814997,0.05157136,59044.0,59043.0,0.011]
[1724171815128,0.23953705,59044.0,59043.0,0.011]
[1724171823572,0.04733705,59044.0,59043.0,0.3954]
[1724171824579,0.14194223,59044.0,59043.0,0.3954]
[1724171824826,0.11652226,59044.0,59043.0,0.3954]
[1724171825225,0.11652226,59044.0,59043.0,0.5184]
[1724171825226,0.01485389,59044.0,59043.0,0.5184]
[1724171826261,0.01485389,59044.0,59043.0,0.5124]
[1724171826262,0.01385389,59044.0,59043.0,0.5124]
[1724171826484,0.01285389,59044.0,59043.0,0.5084]
[1724171826685,0.01385389,59044.0,59043.0,0.7068]
[1724171826919,0.002821,59044.0,59043.0,0.7098]
[1724171828316,0.002821,59044.0,59043.0,0.8200128]
[1724171828524,0.05082355,59059.0,59057.0,0.3874]
[1724171828699,0.05082355,59059.0,59057.0,0.5104]
[1724171828899,0.04202012,59058.0,59057.0,0.5104]
[1724171829170,0.04202012,59058.0,59057.0,0.6996]
[1724171829171,0.01202012,59058.0,59057.0,0.6996]
[1724171829369,0.03,59065.0,59064.0,0.5949]
[1724171829498,0.04203729,59065.0,59064.0,0.6179]
[1724171829707,0.04203729,59065.0,59064.0,0.6939]
[1724171829900,0.04203729,59065.0,59064.0,0.7169]
[1724171829901,0.03,59065.0,59064.0,0.7169]
[1724171830102,0.03,59065.0,59064.0,0.82367]
[1724171830384,0.03,59071.0,59065.0,0.3998]
[1724171830587,0.03,59071.0,59070.0,0.3568]
[1724171830796,0.03,59071.0,59070.0,0.7556]
[1724171830970,0.03,59071.0,59070.0,0.8786]
[1724171831588,0.03,59071.0,59070.0,0.96576]
[1724171831987,0.200822,59075.0,59070.0,0.56596]
[1724171832189,0.200822,59075.0,59072.0,0.3998]
[1724171832190,0.000822,59075.0,59072.0,0.3998]
[1724171832401,0.000822,59075.0,59073.0,0.12638506]
[1724171832594,0.000822,59075.0,59074.0,0.4998]
[1724171832800,0.000822,59075.0,59074.0,0.62971451]
[1724171832999,0.000822,59075.0,59074.0,0.5228]
[1724171833171,0.000822,59075.0,59074.0,0.6169]
[1724171833594,0.000822,59075.0,59074.0,0.7169]
[1724171833800,0.001822,59075.0,59074.0,0.7239]
[1724171834008,0.001822,59075.0,59074.0,0.7769851]
[1724171835496,0.001822,59075.0,59074.0,0.7849851]
[1724171836364,0.001822,59075.0,59074.0,0.7319]
[1724171837604,0.001822,59075.0,59074.0,1.0897]
[1724171837805,0.0127689,59075.0,59074.0,1.10002358]
[1724171838008,0.001822,59075.0,59074.0,1.10002358]
[1724171840691,0.001822,59075.0,59074.0,0.90492358]
[1724171840889,0.11570357,59080.0,59074.0,0.90492358]
[1724171841151,0.14570357,59080.0,59075.0,0.123]
[1724171841276,0.03,59080.0,59075.0,0.123]
[1724171842056,0.03,59080.0,59075.0,0.1]
[1724171842391,0.03,59080.0,59074.0,0.01]
[1724171842550,0.03,59080.0,59074.0,0.007]
[1724171842748,0.03,59080.0,59075.0,0.003]
[1724171842956,0.01108403,59079.0,59075.0,0.003]
[1724171843352,0.03,59080.0,59075.0,0.003]
[1724171843756,0.01106798,59079.0,59075.0,0.003]
[1724171844341,0.01106798,59079.0,59074.0,0.007]
[1724171844813,0.01106798,59079.0,59075.0,0.04975]
[1724171844963,0.01106798,59079.0,59074.0,0.009]
[1724171845162,0.01106798,59079.0,59076.0,0.3858]
[1724171845433,0.01106798,59079.0,59077.0,0.1]
[1724171846047,0.01106798,59079.0,59077.0,0.10338506]
[1724171846266,0.03,59080.0,59077.0,0.1]
[1724171847536,0.03,59080.0,59076.0,0.1]
[1724171847697,0.01107915,59079.0,59076.0,0.1]
[1724171847897,0.01107915,59079.0,59076.0,0.104]
[1724171849321,0.01107915,59079.0,59076.0,0.004]
[1724171851803,0.01189915,59079.0,59076.0,0.004]
[1724171852581,0.01189915,59079.0,59077.0,0.01152872]
[1724171852781,0.01189915,59079.0,59078.0,0.4038]
[1724171852981,0.01189915,59079.0,59078.0,0.5038]
[1724171853931,0.01189915,59079.0,59078.0,0.1]
[1724171854086,0.20659915,59079.0,59078.0,0.003]
[1724171854897,0.20659915,59079.0,59074.0,0.100902]
[1724171855298,0.01189915,59079.0,59078.0,0.006]
[1724171855525,0.01189915,59079.0,59078.0,0.004]
[1724171855697,0.01189915,59079.0,59074.0,0.100902]
[1724171855698,0.00855193,59079.0,59074.0,0.10428719]
[1724171855902,0.00855193,59079.0,59074.0,0.100902]
[1724171856099,0.00855193,59079.0,59074.0,0.104902]
[1724171856951,0.00855193,59079.0,59078.0,0.003]
[1724171857126,0.00249993,59079.0,59074.0,0.104902]
[1724171857330,0.03,59080.0,59074.0,0.104902]
[1724171857667,0.03,59080.0,59074.0,0.107902]
[1724171857818,0.03,59080.0,59074.0,0.100902]
[1724171858200,0.03,59080.0,59078.0,0.007]
[1724171858399,0.03,59080.0,59078.0,0.004]
[1724171858594,0.03,59080.0,59074.0,0.100902]
[1724171858848,0.03,59080.0,59074.0,0.102902]
[1724171859053,0.03,59080.0,59074.0,0.104902]
[1724171860521,0.03,59080.0,59074.0,0.102902]
[1724171860677,0.03,59080.0,59078.0,0.002]
[1724171862021,0.03,59080.0,59078.0,0.0144902]
[1724171862207,0.03,59080.0,59079.0,0.412]
[1724171862408,0.000822,59082.0,59079.0,0.412]
[1724171862409,0.000822,59082.0,59079.0,0.435]
[1724171862610,0.000822,59082.0,59078.0,0.0144902]
[1724171862611,0.000822,59082.0,59081.0,0.7698]
[1724171862820,0.000822,59082.0,59081.0,0.8928]
[1724171863419,0.000822,59082.0,59081.0,0.99948998]
[1724171864546,0.001822,59082.0,59081.0,0.99948998]
[1724171864747,0.000822,59082.0,59081.0,0.1]
[1724171864944,0.000822,59082.0,59080.0,0.1]
[1724171865163,0.000822,59082.0,59081.0,0.023]
[1724171865360,0.001822,59082.0,59081.0,0.04738465]
[1724171865563,0.000822,59082.0,59081.0,0.03738465]
[1724171865773,0.000822,59082.0,59081.0,0.045]
[1724171865918,0.001822,59082.0,59081.0,0.034]
[1724171867751,0.001822,59082.0,59081.0,0.045]
[1724171870404,0.001822,59082.0,59081.0,0.023]
[1724171870405,0.000822,59082.0,59081.0,0.023]
[1724171870811,0.000822,59082.0,59081.0,0.035]
[1724171871175,0.000822,59082.0,59081.0,0.032]
[1724171871606,0.000822,59082.0,59081.0,0.042]
[1724171872581,0.000822,59082.0,59081.0,0.09640677]
[1724171872789,0.000822,59082.0,59081.0,0.84349144]
[1724171872990,0.000822,59082.0,59081.0,1.12439144]
[1724171878052,0.000822,59082.0,59081.0,1.12539144]
[1724171878258,0.000822,59082.0,59081.0,1.12939144]
[1724171878464,0.000822,59082.0,59081.0,1.16333144]
[1724171879862,0.000822,59092.0,59091.0,0.7509]
[1724171880100,0.000822,59092.0,59091.0,0.96816]
[1724171880288,0.000822,59092.0,59091.0,0.96716]
[1724171880791,0.000822,59092.0,59091.0,0.8729]
[1724171881195,0.000822,59092.0,59091.0,0.88750411]
[1724171881746,0.000822,59092.0,59091.0,0.49540411]
[1724171881948,0.000822,59092.0,59091.0,0.104]
[1724171882150,0.000822,59092.0,59091.0,0.004]
[1724171882151,0.63096056,59092.0,59091.0,0.004]
[1724171882351,0.580222,59092.0,59091.0,0.007]
[1724171882572,0.87749913,59092.0,59091.0,0.007]
[1724171882780,0.776022,59092.0,59091.0,0.007]
[1724171883189,0.776022,59092.0,59091.0,0.003]
[1724171883392,0.93523098,59092.0,59091.0,0.003]
[1724171883567,0.93523098,59092.0,59091.0,0.004]
[1724171883834,0.80838457,59092.0,59091.0,0.004]
[1724171884165,0.7839,59082.0,59081.0,0.4771]
[1724171884355,0.03,59083.0,59081.0,0.5771]
[1724171884559,0.1958,59086.0,59082.0,0.3913]
[1724171884745,0.2,59088.0,59084.0,0.3578]
[1724171885373,0.27655552,59090.0,59084.0,0.3578]
[1724171885529,0.27655552,59090.0,59085.0,0.1]
[1724171885726,0.2258,59090.0,59085.0,0.1]
[1724171886126,0.5776,59089.0,59085.0,0.1]
[1724171886734,0.5776,59089.0,59082.0,0.1]
[1724171886907,0.5776,59089.0,59083.0,0.023]
[1724171887475,0.5776,59089.0,59079.0,0.100902]
[1724171887476,0.2,59085.0,59079.0,0.100902]
[1724171887606,0.2,59085.0,59080.0,0.023]
[1724171888014,0.2,59085.0,59083.0,0.002]
[1724171888419,0.2,59085.0,59080.0,0.023]
[1724171890197,0.2,59085.0,59080.0,0.2101]
[1724171890420,0.08075552,59090.0,59085.0,0.3873]
[1724171890596,0.28075552,59090.0,59086.0,0.1]
[1724171890800,0.03,59090.0,59086.0,0.10338455]
[1724171891043,0.03,59090.0,59086.0,0.1]
[1724171891224,0.03,59090.0,59087.0,0.00338441]
[1724171891464,0.000822,59092.0,59088.0,0.023]
[1724171891672,0.000822,59092.0,59091.0,0.3578]
[1724171891838,0.000822,59092.0,59091.0,0.3808]
[1724171892198,0.000822,59092.0,59091.0,0.4808]
[1724171894359,0.000822,59092.0,59091.0,0.1]
[1724171894559,0.000822,59092.0,59086.0,0.4096]
[1724171894560,0.001822,59092.0,59087.0,0.11032165]
[1724171894767,0.001822,59092.0,59087.0,0.1]
[1724171894968,0.001822,59092.0,59088.0,0.00338438]
[1724171895207,0.001822,59092.0,59091.0,0.7674]
[1724171895379,0.001822,59092.0,59091.0,1.13657844]
[1724171895795,0.001822,59092.0,59091.0,0.1]
[1724171895796,0.394222,59092.0,59091.0,0.1]
[1724171896480,0.44497752,59092.0,59091.0,0.1]
[1724171896674,0.44497752,59092.0,59084.0,0.01056887]
[1724171896675,0.03,59090.0,59084.0,0.01056887]
[1724171897014,0.03,59090.0,59082.0,0.1]
[1724171897820,0.03,59090.0,59089.0,0.00020372]
[1724171898282,0.194222,59092.0,59089.0,0.00020372]
[1724171898482,0.194222,59092.0,59090.0,0.2569]
[1724171898685,0.193222,59092.0,59091.0,0.1]
[1724171899352,0.000822,59092.0,59091.0,0.49351037]
[1724171899547,0.000822,59092.0,59091.0,0.51651037]
[1724171899951,0.000822,59092.0,59091.0,0.94781037]
[1724171900103,0.000822,59092.0,59091.0,0.94881037]
[1724171901058,0.001822,59092.0,59091.0,0.94881037]
[1724171901713,0.001822,59092.0,59091.0,0.9131]
[1724171901919,0.000822,59092.0,59091.0,0.9121]
[1724171902230,0.000822,59092.0,59091.0,0.9161]
[1724171902436,0.001822,59092.0,59091.0,0.9161]
[1724171902644,0.000822,59092.0,59091.0,0.729]
[1724171904317,0.000822,59092.0,59091.0,0.13]
[1724171904496,0.000822,59092.0,59091.0,0.03]
[1724171904696,0.000822,59092.0,59091.0,0.13]
[1724171905699,0.000822,59092.0,59091.0,0.03]
[1724171906376,0.000822,59092.0,59091.0,0.007]
[1724171907983,0.000822,59092.0,59091.0,0.42393143]
[1724171908292,0.000822,59092.0,59091.0,0.52393143]
[1724171908624,0.000822,59092.0,59091.0,0.96993143]
[1724171910191,0.000822,59092.0,59091.0,0.78443143]
[1724171910388,0.000822,59092.0,59091.0,0.85228543]
[1724171910619,0.000822,59092.0,59091.0,0.816154]
[1724171912768,0.000822,59092.0,59091.0,0.197854]
[1724171912972,0.000822,59092.0,59091.0,0.107]
[1724171912973,0.184522,59092.0,59091.0,0.107]
[1724171913174,0.184522,59092.0,59091.0,0.007]
[1724171918634,0.000822,59092.0,59091.0,0.007]
[1724171918932,0.000822,59092.0,59091.0,0.40462693]
[1724171919132,0.000822,59092.0,59091.0,0.50462693]
[1724171919538,0.27610318,59103.0,59091.0,0.50462693]
[1724171919539,0.00821,59104.0,59091.0,0.50462693]
[1724171919678,0.05895693,59104.0,59093.0,0.2574]
[1724171920023,0.05895693,59104.0,59094.0,0.21760925]
[1724171920448,0.2,59103.0,59094.0,0.21760925]
[1724171920647,0.2,59103.0,59097.0,0.3578]
[1724171920847,0.2,59103.0,59098.0,0.2574]
[1724171921226,0.2,59103.0,59099.0,0.1]
[1724171922019,0.201,59103.0,59099.0,0.1]
[1724171922218,0.201,59103.0,59098.0,0.1]
[1724171922624,0.1806,59102.0,59098.0,0.1]
[1724171923973,0.1806,59102.0,59099.0,0.02670386]
[1724171924146,0.202,59103.0,59099.0,0.02670386]
[1724171924147,0.20282,59103.0,59099.0,0.02670386]
[1724171924350,0.20082,59103.0,59099.0,0.02670386]
[1724171924555,0.001,59102.0,59100.0,0.2496]
[1724171924752,0.001,59102.0,59101.0,0.1]
[1724171925080,0.00082,59103.0,59101.0,0.1]
[1724171926035,0.00082,59103.0,59102.0,0.023]
[1724171926653,0.00082,59103.0,59097.0,0.3578]
[1724171926654,0.2,59096.0,59095.0,0.1]
[1724171926858,0.2,59096.0,59091.0,0.03394]
[1724171926859,0.2,59096.0,59091.0,0.01026241]
[1724171927033,0.1927,59095.0,59091.0,0.01026241]
[1724171927382,0.1927,59095.0,59090.0,0.1]
[1724171928024,0.1927,59095.0,59090.0,0.1105416]
[1724171928172,0.2383,59094.0,59090.0,0.1105416]
[1724171928372,0.2383,59094.0,59091.0,0.008]
[1724171928577,0.4,59092.0,59091.0,0.008]
[1724171928777,0.4,59092.0,59089.0,0.00020372]
[1724171928778,0.2,59090.0,59089.0,0.00020372]
[1724171928954,0.71136313,59090.0,59089.0,0.00020372]
[1724171929217,0.70713183,59090.0,59089.0,0.00020372]
[1724171929419,0.70713183,59090.0,59082.0,0.000902]
[1724171929420,0.2,59084.0,59082.0,0.000902]
[1724171930523,0.25074904,59084.0,59082.0,0.000902]
[1724171930730,0.12684677,59089.0,59082.0,0.000902]
[1724171930731,0.25074904,59085.0,59082.0,0.000902]
[1724171930930,0.431,59084.0,59082.0,0.000902]
[1724171931985,0.431,59084.0,59082.0,0.005902]
[1724171932531,0.431,59084.0,59082.0,0.009902]
[1724171932770,0.431,59084.0,59082.0,0.005902]
[1724171933107,0.48174904,59084.0,59082.0,0.000902]
[1724171933309,0.431,59084.0,59082.0,0.001902]
[1724171933513,0.431,59084.0,59082.0,0.000902]
[1724171934343,0.431,59084.0,59082.0,0.002902]
[1724171934959,0.431,59084.0,59082.0,0.001902]
[1724171935166,0.431,59084.0,59082.0,0.003902]
[1724171936038,0.43079629,59084.0,59082.0,0.003902]
[1724171939256,0.19249629,59084.0,59082.0,0.003902]
[1724171939662,0.2,59085.0,59082.0,0.0379524]
[1724171940211,0.2,59085.0,59082.0,0.003902]
[1724171940648,0.2,59085.0,59082.0,0.001902]
[1724171942422,0.1908,59083.0,59082.0,0.001902]
[1724171943946,0.1908,59083.0,59082.0,0.000902]
[1724171944341,0.23,59085.0,59082.0,0.239602]
[1724171944571,0.23,59085.0,59083.0,0.0240504]
[1724171945215,0.23,59085.0,59082.0,0.239602]
[1724171945433,0.05066621,59091.0,59082.0,0.787502]
[1724171945667,0.4147,59092.0,59083.0,0.1]
[1724171945904,0.2,59084.0,59083.0,0.1]
[1724171946317,0.3945,59084.0,59083.0,0.1]
[1724171946542,0.3945,59084.0,59082.0,0.001902]
[1724171946973,0.3945,59084.0,59082.0,0.000902]
[1724171947350,0.3945,59084.0,59083.0,0.002]
[1724171947895,0.3945,59084.0,59082.0,0.000902]
[1724171948113,0.3945,59084.0,59082.0,0.002902]
[1724171949144,0.3945,59084.0,59083.0,0.001]
[1724171949597,0.2,59084.0,59083.0,0.001]
[1724171949929,0.2,59084.0,59083.0,0.003]
[1724171950833,0.2,59084.0,59083.0,0.002]
[1724171951756,0.2,59084.0,59083.0,0.003]
[1724171952206,0.000821,59085.0,59083.0,0.1941849]
[1724171952381,0.000821,59085.0,59084.0,0.61700869]
[1724171952579,0.000821,59085.0,59084.0,0.71700869]
[1724171953837,0.000821,59085.0,59084.0,0.71800869]
[1724171954036,0.000821,59085.0,59084.0,0.74100869]
[1724171954475,0.000821,59085.0,59084.0,0.7205]
[1724171954679,0.000821,59085.0,59084.0,0.7305]
[1724171954881,0.000821,59085.0,59084.0,0.7395]
[1724171956843,0.000821,59085.0,59084.0,0.3587]
[1724171957648,0.000821,59085.0,59084.0,0.019]
[1724171959177,0.000821,59085.0,59084.0,0.01]
[1724171959565,0.2,59083.0,59082.0,0.000902]
[1724171961238,0.2,59083.0,59082.0,0.006902]
[1724171961505,0.2,59083.0,59082.0,0.013902]
[1724171963801,0.000821,59085.0,59082.0,0.451402]
[1724171964008,0.000821,59085.0,59082.0,0.261902]
[1724171964215,0.2,59083.0,59082.0,0.261902]
[1724171964426,0.2,59083.0,59082.0,0.113902]
[1724171964860,0.000821,59085.0,59082.0,0.106902]
[1724171965134,0.000821,59085.0,59082.0,0.100902]
[1724171965135,0.2,59084.0,59082.0,0.100902]
[1724171965380,0.2,59084.0,59082.0,0.104902]
[1724171965578,0.2,59084.0,59082.0,0.100902]
[1724171965758,0.2,59084.0,59082.0,0.000902]
[1724171966321,0.2,59084.0,59082.0,0.004902]
[1724171966727,0.2,59084.0,59082.0,0.000902]
[1724171966728,0.1836,59083.0,59082.0,0.000902]
[1724171967005,0.1836,59083.0,59082.0,0.011902]
[1724171967190,0.1836,59083.0,59082.0,0.005902]
[1724171967448,0.1836,59083.0,59082.0,0.010902]
[1724171967676,0.1836,59083.0,59082.0,0.000902]
[1724171968124,0.1836,59083.0,59082.0,0.013902]
[1724171970079,0.2,59084.0,59082.0,0.013902]
[1724171970639,0.25070703,59084.0,59082.0,0.013902]
[1724171970860,0.2,59084.0,59082.0,0.013902]
[1724171971069,0.2,59084.0,59082.0,0.006902]
[1724171971477,0.2,59084.0,59082.0,0.000902]
[1724171971677,0.25070703,59084.0,59082.0,0.005902]
[1724171972091,0.2,59084.0,59082.0,0.005902]
[1724171972439,0.05070703,59083.0,59082.0,0.005902]
[1724171973044,0.05070703,59083.0,59082.0,0.010902]
[1724171973445,0.10141407,59083.0,59082.0,0.005902]
[1724171973624,0.10141407,59083.0,59082.0,0.000902]
[1724171973825,0.07621099,59083.0,59082.0,0.006902]
[1724171974071,0.07621099,59083.0,59082.0,0.013902]
[1724171974274,0.07621021,59083.0,59082.0,0.013902]
[1724171974570,0.10141407,59083.0,59082.0,0.013902]
[1724171975045,0.49663691,59083.0,59082.0,0.013902]
[1724171975658,0.64909446,59083.0,59082.0,0.013902]
[1724171976510,0.64909446,59083.0,59082.0,0.007902]
[1724171976857,0.64909446,59083.0,59082.0,0.000902]
[1724171977081,0.64907271,59083.0,59082.0,0.001902]
[1724171977483,0.49663691,59083.0,59082.0,0.000902]
[1724171977688,0.49863691,59083.0,59082.0,0.000902]
[1724171977890,0.49963691,59083.0,59082.0,0.000902]
[1724171982923,0.525882,59083.0,59082.0,0.000902]
[1724171983138,0.526882,59083.0,59082.0,0.000902]
[1724171983350,0.69837227,59083.0,59082.0,0.000902]
[1724171983552,0.526882,59083.0,59082.0,0.000902]
[1724171983815,0.525882,59083.0,59082.0,0.000902]
[1724171985704,0.65189245,59083.0,59082.0,0.000902]
[1724171986025,0.52586461,59083.0,59082.0,0.000902]
[1724171986438,0.49963691,59083.0,59082.0,0.000902]
[1724171986629,0.6781042,59083.0,59082.0,0.000902]
[1724171987666,0.65187618,59083.0,59082.0,0.000902]
[1724171988389,0.67808302,59083.0,59082.0,0.000902]
[1724171988583,0.65186041,59083.0,59082.0,0.000902]
[1724171990767,0.49963691,59083.0,59082.0,0.000902]
[1724171995090,0.26193691,59083.0,59082.0,0.000902]
[1724171995750,0.50066893,59083.0,59082.0,0.000902]
[1724171996169,1.54048093,59083.0,59082.0,0.000902]
[1724171996371,2.28028593,59083.0,59082.0,0.000902]
[1724171996778,2.29080906,59083.0,59082.0,0.000902]
[1724171996978,2.28780906,59083.0,59082.0,0.000902]
[1724171997412,2.29380906,59083.0,59082.0,0.000902]
[1724171997767,2.28780906,59083.0,59082.0,0.000902]
[1724171997971,2.29080906,59083.0,59082.0,0.000902]
[1724171998153,2.29380906,59083.0,59082.0,0.000902]
[1724171999352,2.56461406,59083.0,59082.0,0.000902]
[1724172000342,2.56461406,59083.0,59082.0,0.00055822]
[1724172000516,2.39161406,59083.0,59082.0,0.00055822]
[1724172000739,2.21861406,59083.0,59082.0,0.00055822]
[1724172001147,2.18861406,59083.0,59082.0,0.00055822]
[1724172001351,2.18861406,59083.0,59074.0,0.000902]
[1724172001352,0.635,59077.0,59074.0,0.000902]
[1724172001565,0.63,59046.0,59045.0,0.235]
[1724172002379,0.63,59046.0,59042.0,0.2335031]
[1724172002535,0.0366714,59045.0,59042.0,0.2335031]
[1724172002734,0.00423449,59045.0,59042.0,0.2335031]
[1724172002939,0.03250439,59044.0,59042.0,0.2335031]
[1724172003183,0.00423449,59043.0,59042.0,0.2335031]
[1724172004137,0.00423449,59043.0,59042.0,0.0009031]
[1724172004138,0.03249207,59043.0,59042.0,0.0009031]
[1724172004343,0.0367269,59043.0,59042.0,0.0049031]
[1724172004857,0.0367269,59043.0,59042.0,0.0089031]
[1724172005100,0.03249207,59043.0,59042.0,0.2457031]
[1724172005236,0.03249207,59045.0,59042.0,0.2417031]
[1724172005432,0.003,59043.0,59042.0,0.2417031]
[1724172005662,0.03549207,59043.0,59042.0,0.2417031]
[1724172006030,0.003,59043.0,59042.0,0.2417031]
[1724172006425,0.005,59043.0,59042.0,0.2417031]
[1724172006634,0.03750249,59043.0,59042.0,0.2417031]
[1724172006835,0.03450249,59043.0,59042.0,0.2417031]
[1724172007421,0.002,59043.0,59042.0,0.2417031]
[1724172007976,0.005,59043.0,59042.0,0.2417031]
[1724172008560,0.005,59043.0,59042.0,0.4375031]
[1724172010022,0.003,59043.0,59042.0,0.4375031]
[1724172010242,0.003,59043.0,59042.0,0.4385031]
[1724172010472,0.10866175,59043.0,59042.0,0.4385031]
[1724172010689,0.10866175,59043.0,59042.0,0.4375031]
[1724172011137,0.13404856,59043.0,59042.0,0.2467031]
[1724172011360,0.03250148,59043.0,59042.0,0.2467031]
[1724172011568,0.03250148,59043.0,59042.0,0.2517031]
[1724172011708,0.03250148,59043.0,59042.0,0.2467031]
[1724172011886,0.03250148,59043.0,59042.0,0.0059031]
[1724172012089,0.2138361,59043.0,59042.0,0.0059031]
[1724172012328,0.36615672,59043.0,59042.0,0.0059031]
[1724172012784,0.58689548,59043.0,59042.0,0.0059031]
[1724172013039,0.44840148,59043.0,59042.0,0.0059031]
[1724172013300,0.75832158,59043.0,59042.0,0.0009031]
[1724172013512,0.44840148,59043.0,59042.0,0.0009031]
[1724172013759,0.58489548,59043.0,59042.0,0.0039031]
[1724172013991,0.44540148,59043.0,59042.0,0.0039031]
[1724172014224,0.44840148,59043.0,59042.0,0.0039031]
[1724172014463,0.44540148,59043.0,59042.0,0.0009031]
[1724172014694,0.58089548,59043.0,59042.0,0.0009031]
[1724172015018,0.73580206,59043.0,59042.0,0.0009031]
[1724172015527,0.67772794,59043.0,59042.0,0.0009031]
[1724172015790,0.824382,59043.0,59042.0,0.0009031]
[1724172016035,0.553394,59043.0,59042.0,0.0009031]
[1724172016505,0.554394,59043.0,59042.0,0.0009031]
[1724172016749,0.63009979,59043.0,59042.0,0.0009031]
[1724172016986,0.554394,59043.0,59042.0,0.0009031]
[1724172017228,0.4189,59043.0,59042.0,0.0009031]
[1724172017464,0.554394,59043.0,59042.0,0.0009031]
[1724172018182,0.556394,59043.0,59042.0,0.0009031]
[1724172018428,1.394358,59043.0,59042.0,0.0009031]
[1724172018694,1.27376433,59043.0,59042.0,0.0009031]
[1724172018937,1.22337,59043.0,59042.0,0.0009031]
[1724172019642,1.22337,59043.0,59033.0,0.0114827]
[1724172019643,1.312575,59034.0,59033.0,0.0114827]
[1724172019885,1.312575,59034.0,59031.0,0.009231]
[1724172019886,0.005,59032.0,59031.0,0.009231]
[1724172020095,0.635,59025.0,59014.0,8.96e-05]
[1724172020302,2.465948,59025.0,59014.0,8.96e-05]